Workbook

Sheet Scenarios
B1: code number | D1: 1
C2: Life | D2: Degradation | E2: capacity factor | F2: Cost per kW | G2: O&M cost | H2: Interest rate | J2: Equity IRR | K2: Project IRR | L2: DSCR
J3: ='Financial Model'!H107 -> 0.4797205732 | K3: ='Financial Model'!F41 -> 0.2056185997 | L3: ='Financial Model'!F107 -> 1.500391262
B4: Base case | C4: 25 | D4: 0 | E4: 0.2 | F4: 1100 | G4: 12 | H4: 0.1 | I4: 1 | J4: 0.4797205732 | K4: 0.2056185997 | L4: 1.500391262
B5: Downside | C5: 20 | D5: 0.0075 | E5: 0.18 | F5: 1500 | G5: 15 | H5: 0.12 | I5: 2 | J5: 0.1004730493 | K5: 0.1113113659 | L5: 0.8847888795
B6: Upside | C6: 30 | D6: 0.003 | E6: 0.22 | F6: 1000 | G6: 10 | H6: 0.07 | I6: 3 | J6: 0.8790081184 | K6: 0.2501433678 | L6: 2.09507592
B7: =TRANSPOSE(C2:I2)&" Low case sensitivity" -> Life Low case sensitivity | C7: =C5 -> 20 | D7: 0.005 | E7: 0.2 | F7: 1100 | G7: 12 | H7: 0.1 | I7: 4 | J7: 0.4590310287 | K7: 0.1960137909 | L7: 1.492495001
B8: Degradation Low case sensitivity | C8: 25 | D8: =D5 -> 0.0075 | E8: 0.2 | F8: 1100 | G8: 12 | H8: 0.1 | I8: 5 | J8: 0.4492716161 | K8: 0.1960843261 | L8: 1.488546871
B9: capacity factor Low case sensitivity | C9: 25 | D9: 0 | E9: =E5 -> 0.18 | F9: 1100 | G9: 12 | H9: 0.1 | I9: 6 | J9: 0.3583645714 | K9: 0.1829225131 | L9: 1.34246606
B10: Cost per kW Low case sensitivity | C10: 25 | D10: 0 | E10: 0.2 | F10: =F5 -> 1500 | G10: 12 | H10: 0.1 | I10: 7 | J10: 0.2156429731 | K10: 0.1473034782 | L10: 1.100286925
B11: O&M cost Low case sensitivity | C11: 25 | D11: 0 | E11: 0.2 | F11: 1100 | G11: =G5 -> 15 | H11: 0.1 | I11: 8 | J11: 0.4636327021 | K11: 0.2028017092 | L11: 1.480676073
B12: Interest rate Low case sensitivity | C12: 25 | D12: 0 | E12: 0.2 | F12: 1100 | G12: 12 | H12: =H5 -> 0.12 | I12: 9 | J12: 0.4123061594 | K12: 0.2056185997 | L12: 1.379681451
B13: =TRANSPOSE(C2:H2)& ": High case sensitivity" -> Life: High case sensitivity | C13: =C6 -> 30 | D13: 0 | E13: 0.2 | F13: 1100 | G13: 12 | H13: 0.1 | I13: 10 | J13: 0.479779451 | K13: 0.2068167825 | L13: 1.500391262
B14: Degradation: High case sensitivity | C14: 25 | D14: 0 | E14: 0.2 | F14: 1100 | G14: 12 | H14: 0.1 | I14: 11 | J14: 0.4797205732 | K14: 0.2056185997 | L14: 1.500391262
B15: capacity factor: High case sensitivity | C15: 25 | D15: 0 | E15: =E6 -> 0.22 | F15: 1100 | G15: 12 | H15: 0.1 | I15: 12 | J15: 0.6147573881 | K15: 0.2280513341 | L15: 1.658316463
B16: Cost per kW: High case sensitivity | C16: 25 | D16: 0 | E16: 0.2 | F16: =F6 -> 1000 | G16: 12 | H16: 0.1 | I16: 13 | J16: 0.6078202524 | K16: 0.2269359834 | L16: 1.650430388
B17: O&M cost: High case sensitivity | C17: 25 | D17: 0 | E17: 0.2 | F17: 1100 | G17: =G6 -> 10 | H17: 0.1 | I17: 14 | J17: 0.4905638194 | K17: 0.2074942631 | L17: 1.513534721
B18: Interest rate: High case sensitivity | C18: 25 | D18: 0 | E18: 0.2 | F18: 1100 | G18: 12 | H18: =H6 -> 0.07 | I18: 15 | J18: 0.5849425581 | K18: 0.2056185997 | L18: 1.715030561
B21: =INDEX(B4:B18,$D$1) -> Base case | C21: 25 | D21: 0 | E21: 0.2 | F21: 1100 | G21: 12 | H21: 0.1
G23: code number | H23: 1
H24: Low | I24: High | J24: =J2 -> Equity IRR | K24: =K2 -> Project IRR | L24: =L2 -> DSCR
G25: =B7 -> Life Low case sensitivity | H25: =INDEX(J25:L25,$H$23) -> -0.02068954453 | I25: =INDEX(J33:L33,$H$23) -> 5.887782035e-05 | J25: =J7-J$4 -> -0.02068954453 | K25: -0.009604808804 | L25: -0.007896260079
G26: Degradation Low case sensitivity | H26: -0.03044895711 | I26: =INDEX(J34:L34,$H$23) -> 0 | J26: -0.03044895711 | K26: -0.009534273623 | L26: -0.01184439012
G27: capacity factor Low case sensitivity | H27: -0.1213560017 | I27: 0.135036815 | J27: -0.1213560017 | K27: -0.02269608659 | L27: -0.1579252016
G28: Cost per kW Low case sensitivity | H28: -0.2640776001 | I28: 0.1280996792 | J28: -0.2640776001 | K28: -0.05831512148 | L28: -0.4001043364
G29: O&M cost Low case sensitivity | H29: -0.01608787106 | I29: 0.01084324624 | J29: -0.01608787106 | K29: -0.002816890496 | L29: -0.01971518857
G30: Interest rate Low case sensitivity | H30: -0.06741441379 | I30: 0.105221985 | J30: -0.06741441379 | K30: 0 | L30: -0.120709811
J32: =J24 -> Equity IRR | K32: =K24 -> Project IRR | L32: DSCR
G33: =B13 -> Life: High case sensitivity | J33: =J13-J$4 -> 5.887782035e-05 | K33: =K13-K$4 -> 0.001198182729 | L33: 0
G34: =B14 -> Degradation: High case sensitivity | J34: =J14-J$4 -> 0 | K34: 0 | L34: 0
G35: capacity factor: High case sensitivity | J35: =J15-J$4 -> 0.135036815 | K35: 0.0224327344 | L35: 0.1579252016
G36: Cost per kW: High case sensitivity | J36: =J16-J$4 -> 0.1280996792 | K36: 0.02131738365 | L36: 0.1500391262
G37: O&M cost: High case sensitivity | J37: =J17-J$4 -> 0.01084324624 | K37: 0.001875663376 | L37: 0.01314345905
G38: Interest rate: High case sensitivity | J38: =J18-J$4 -> 0.105221985 | K38: 0 | L38: 0.2146392992
G40: Tonado Chart | I40: =INDEX(J32:L32,H23) -> Equity IRR

Sheet Financial Model
A1: Timing | F1: PPA | G1: =G22 -> 137.1632154
B2: Time Period | I2: 0 | J2: 1 | K2: 2 | L2: 3 | M2: 4 | N2: 5 | O2: 6 | P2: 7 | Q2: 8 | R2: 9 | S2: 10 | T2: 11 | U2: 12 | V2: 13 | W2: 14 | X2: 15 | Y2: 16 | Z2: 17 | AA2: 18 | AB2: 19 | AC2: 20 | AD2: 21 | AE2: 22 | AF2: 23 | AG2: 24 | AH2: 25 | AI2: 26 | AJ2: 27 | AK2: 28 | AL2: 29 | AM2: 30 | AN2: 31 | AO2: 32 | AP2: 33 | AQ2: 34 | AR2: 35
B3: Operating Switch | F3: =F6 -> 25 | J3: =J2<=$F$3 -> TRUE | K3: =K2<=$F$3 -> TRUE | L3: TRUE | M3: TRUE | N3: TRUE | O3: TRUE | P3: TRUE | Q3: TRUE | R3: TRUE | S3: TRUE | T3: TRUE | U3: TRUE | V3: TRUE | W3: TRUE | X3: TRUE | Y3: TRUE | Z3: TRUE | AA3: TRUE | AB3: TRUE | AC3: TRUE | AD3: TRUE | AE3: TRUE | AF3: TRUE | AG3: TRUE | AH3: TRUE | AI3: FALSE | AJ3: FALSE | AK3: FALSE | AL3: FALSE | AM3: FALSE | AN3: FALSE | AO3: FALSE | AP3: FALSE | AQ3: FALSE | AR3: FALSE
A4: Assumptions
B5: Timing assumptions
C6: Project Life | E6: Years | F6: =Scenarios!C21 -> 25
B8: Operating Assumptions
C9: Plant Capacity | E9: mwp | F9: 20
C10: Degradation | E10: %pa | F10: =Scenarios!D21 -> 0
C11: Capacity Factor (Yeild) | E11: % | F11: =Scenarios!E21 -> 0.2
B14: Capex Assumptions
C15: Cost per kWp | E15: $ per kW | F15: =Scenarios!F21 -> 1100
B17: Opex Assumptions
C18: O&M per kW | E18: $/kW-year | F18: =Scenarios!G21 -> 12
B20: PPA Assumptions
C21: Year | F21: 0 | G21: 1 | H21: 11 | I21: =F6+1 -> 26
C22: PPA Price | E22: $/mWh | F22: 0 | G22: 137.1632154 | H22: =G22 -> 137.1632154 | I22: 0
B24: Financing Assumptions
C25: Debt size | E25: % | F25: 0.7
C26: Debt Tenor | E26: years | F26: 10
C27: Interest rate | E27: % | F27: =Scenarios!H21 -> 0.1
A29: Operating Model
B30: Plant Characteristics | E30: mwp | F30: =F9 -> 20 | I30: =$F$30*I3 -> 0 | J30: 20 | K30: 20 | L30: 20 | M30: 20 | N30: 20 | O30: 20 | P30: 20 | Q30: 20 | R30: 20 | S30: 20 | T30: 20 | U30: 20 | V30: 20 | W30: 20 | X30: 20 | Y30: 20 | Z30: 20 | AA30: 20 | AB30: 20 | AC30: 20 | AD30: 20 | AE30: 20 | AF30: 20 | AG30: 20 | AH30: 20 | AI30: 0 | AJ30: 0 | AK30: 0 | AL30: 0 | AM30: 0 | AN30: 0 | AO30: 0 | AP30: 0 | AQ30: 0 | AR30: 0
B31: Degradation Factor | E31: % | F31: =F10 -> 0 | I31: 1 | J31: =I31*(1-$F$31) -> 1 | K31: =J31*(1-$F$31) -> 1 | L31: 1 | M31: 1 | N31: 1 | O31: 1 | P31: 1 | Q31: 1 | R31: 1 | S31: 1 | T31: 1 | U31: 1 | V31: 1 | W31: 1 | X31: 1 | Y31: 1 | Z31: 1 | AA31: 1 | AB31: 1 | AC31: 1 | AD31: 1 | AE31: 1 | AF31: 1 | AG31: 1 | AH31: 1 | AI31: 1 | AJ31: 1 | AK31: 1 | AL31: 1 | AM31: 1 | AN31: 1 | AO31: 1 | AP31: 1 | AQ31: 1 | AR31: 1
B32: Net Capacity | E32: mwp | I32: =PRODUCT(I30:I31) -> 0 | J32: =PRODUCT(J30:J31) -> 20 | K32: 20 | L32: 20 | M32: 20 | N32: 20 | O32: 20 | P32: 20 | Q32: 20 | R32: 20 | S32: 20 | T32: 20 | U32: 20 | V32: 20 | W32: 20 | X32: 20 | Y32: 20 | Z32: 20 | AA32: 20 | AB32: 20 | AC32: 20 | AD32: 20 | AE32: 20 | AF32: 20 | AG32: 20 | AH32: 20 | AI32: 0 | AJ32: 0 | AK32: 0 | AL32: 0 | AM32: 0 | AN32: 0 | AO32: 0 | AP32: 0 | AQ32: 0 | AR32: 0
B33: Generation | E33: mwh | F33: =F11 -> 0.2 | I33: =I32*8760*$F$33 -> 0 | J33: =J32*8760*$F$33 -> 35040 | K33: =K32*8760*$F$33 -> 35040 | L33: 35040 | M33: 35040 | N33: 35040 | O33: 35040 | P33: 35040 | Q33: 35040 | R33: 35040 | S33: 35040 | T33: 35040 | U33: 35040 | V33: 35040 | W33: 35040 | X33: 35040 | Y33: 35040 | Z33: 35040 | AA33: 35040 | AB33: 35040 | AC33: 35040 | AD33: 35040 | AE33: 35040 | AF33: 35040 | AG33: 35040 | AH33: 35040 | AI33: 0 | AJ33: 0 | AK33: 0 | AL33: 0 | AM33: 0 | AN33: 0 | AO33: 0 | AP33: 0 | AQ33: 0 | AR33: 0
B35: EPC Cost | E35: $'000 | F35: =F15*F9 -> 22000 | I35: =F35 -> 22000
B36: O&M Cost | E36: $'000 | F36: =F18 -> 12 | I36: =$F$36*I3*I30 -> 0 | J36: 240 | K36: 240 | L36: 240 | M36: 240 | N36: 240 | O36: 240 | P36: 240 | Q36: 240 | R36: 240 | S36: 240 | T36: 240 | U36: 240 | V36: 240 | W36: 240 | X36: 240 | Y36: 240 | Z36: 240 | AA36: 240 | AB36: 240 | AC36: 240 | AD36: 240 | AE36: 240 | AF36: 240 | AG36: 240 | AH36: 240 | AI36: 0 | AJ36: 0 | AK36: 0 | AL36: 0 | AM36: 0 | AN36: 0 | AO36: 0 | AP36: 0 | AQ36: 0 | AR36: 0
B37: PPA Price | E37: $/mWh | I37: =LOOKUP(I2,21:21,22:22) -> 0 | J37: =LOOKUP(J2,21:21,22:22) -> 137.1632154 | K37: 137.1632154 | L37: 137.1632154 | M37: 137.1632154 | N37: 137.1632154 | O37: 137.1632154 | P37: 137.1632154 | Q37: 137.1632154 | R37: 137.1632154 | S37: 137.1632154 | T37: 137.1632154 | U37: 137.1632154 | V37: 137.1632154 | W37: 137.1632154 | X37: 137.1632154 | Y37: 137.1632154 | Z37: 137.1632154 | AA37: 137.1632154 | AB37: 137.1632154 | AC37: 137.1632154 | AD37: 137.1632154 | AE37: 137.1632154 | AF37: 137.1632154 | AG37: 137.1632154 | AH37: 137.1632154 | AI37: 0 | AJ37: 0 | AK37: 0 | AL37: 0 | AM37: 0 | AN37: 0 | AO37: 0 | AP37: 0 | AQ37: 0 | AR37: 0
B38: Revenues | E38: $'000 | I38: =I37*I33/1000 -> 0 | J38: =J37*J33/1000 -> 4806.199068 | K38: 4806.199068 | L38: 4806.199068 | M38: 4806.199068 | N38: 4806.199068 | O38: 4806.199068 | P38: 4806.199068 | Q38: 4806.199068 | R38: 4806.199068 | S38: 4806.199068 | T38: 4806.199068 | U38: 4806.199068 | V38: 4806.199068 | W38: 4806.199068 | X38: 4806.199068 | Y38: 4806.199068 | Z38: 4806.199068 | AA38: 4806.199068 | AB38: 4806.199068 | AC38: 4806.199068 | AD38: 4806.199068 | AE38: 4806.199068 | AF38: 4806.199068 | AG38: 4806.199068 | AH38: 4806.199068 | AI38: 0 | AJ38: 0 | AK38: 0 | AL38: 0 | AM38: 0 | AN38: 0 | AO38: 0 | AP38: 0 | AQ38: 0 | AR38: 0
B40: Project Cashflows | I40: =I38-I35-I36 -> -22000 | J40: =J38-J35-J36 -> 4566.199068 | K40: 4566.199068 | L40: 4566.199068 | M40: 4566.199068 | N40: 4566.199068 | O40: 4566.199068 | P40: 4566.199068 | Q40: 4566.199068 | R40: 4566.199068 | S40: 4566.199068 | T40: 4566.199068 | U40: 4566.199068 | V40: 4566.199068 | W40: 4566.199068 | X40: 4566.199068 | Y40: 4566.199068 | Z40: 4566.199068 | AA40: 4566.199068 | AB40: 4566.199068 | AC40: 4566.199068 | AD40: 4566.199068 | AE40: 4566.199068 | AF40: 4566.199068 | AG40: 4566.199068 | AH40: 4566.199068 | AI40: 0 | AJ40: 0 | AK40: 0 | AL40: 0 | AM40: 0 | AN40: 0 | AO40: 0 | AP40: 0 | AQ40: 0 | AR40: 0
B41: Project IRR | F41: =IRR(40:40) -> 0.2056185997
A43: Project Finance Model
B45: Sources and uses of funds
C46: Cap Exp | E46: $'000 | I46: =I35 -> 22000
C48: Debt | E48: $'000 | F48: 0.85 | I48: =I46*F48 -> 18700
C49: Equity | E49: $'000 | I49: =I46-I48 -> 3300
C50: Total | I50: =SUM(I48:I49) -> 22000
B52: Debt schedule
C53: Repayment | E53: years | F53: =F26 -> 10 | J53: =J2<=$F$53 -> TRUE | K53: =K2<=$F$53 -> TRUE | L53: TRUE | M53: TRUE | N53: TRUE | O53: TRUE | P53: TRUE | Q53: TRUE | R53: TRUE | S53: TRUE | T53: FALSE | U53: FALSE | V53: FALSE | W53: FALSE | X53: FALSE | Y53: FALSE | Z53: FALSE | AA53: FALSE | AB53: FALSE | AC53: FALSE | AD53: FALSE | AE53: FALSE | AF53: FALSE | AG53: FALSE | AH53: FALSE | AI53: FALSE | AJ53: FALSE | AK53: FALSE | AL53: FALSE | AM53: FALSE | AN53: FALSE | AO53: FALSE | AP53: FALSE | AQ53: FALSE | AR53: FALSE
C54: Repayment amount | E54: $'000 | F54: =I48/F53 -> 1870 | J54: =IF(J53,PPMT($F$59,J2,$F$53,-$I$48))*1 -> 1173.338884 | K54: =IF(K53,PPMT($F$59,K2,$F$53,-$I$48))*1 -> 1290.672773 | L54: 1419.74005 | M54: 1561.714055 | N54: 1717.885461 | O54: 1889.674007 | P54: 2078.641407 | Q54: 2286.505548 | R54: 2515.156103 | S54: 2766.671713 | T54: 0 | U54: 0 | V54: 0 | W54: 0 | X54: 0 | Y54: 0 | Z54: 0 | AA54: 0 | AB54: 0 | AC54: 0 | AD54: 0 | AE54: 0 | AF54: 0 | AG54: 0 | AH54: 0 | AI54: 0 | AJ54: 0 | AK54: 0 | AL54: 0 | AM54: 0 | AN54: 0 | AO54: 0 | AP54: 0 | AQ54: 0 | AR54: 0
C56: Opening balance | J56: =I58 -> 18700 | K56: =J58 -> 17526.66112 | L56: 16235.98834 | M56: 14816.24829 | N56: 13254.53424 | O56: 11536.64878 | P56: 9646.974771 | Q56: 7568.333364 | R56: 5281.827816 | S56: 2766.671713 | T56: 0 | U56: 0 | V56: 0 | W56: 0 | X56: 0 | Y56: 0 | Z56: 0 | AA56: 0 | AB56: 0 | AC56: 0 | AD56: 0 | AE56: 0 | AF56: 0 | AG56: 0 | AH56: 0 | AI56: 0 | AJ56: 0 | AK56: 0 | AL56: 0 | AM56: 0 | AN56: 0 | AO56: 0 | AP56: 0 | AQ56: 0 | AR56: 0
C57: less: repayment | J57: =-J54 -> -1173.338884 | K57: =-K54 -> -1290.672773 | L57: -1419.74005 | M57: -1561.714055 | N57: -1717.885461 | O57: -1889.674007 | P57: -2078.641407 | Q57: -2286.505548 | R57: -2515.156103 | S57: -2766.671713 | T57: 0 | U57: 0 | V57: 0 | W57: 0 | X57: 0 | Y57: 0 | Z57: 0 | AA57: 0 | AB57: 0 | AC57: 0 | AD57: 0 | AE57: 0 | AF57: 0 | AG57: 0 | AH57: 0 | AI57: 0 | AJ57: 0 | AK57: 0 | AL57: 0 | AM57: 0 | AN57: 0 | AO57: 0 | AP57: 0 | AQ57: 0 | AR57: 0
C58: closing balance | I58: =I48 -> 18700 | J58: =SUM(J56:J57) -> 17526.66112 | K58: =SUM(K56:K57) -> 16235.98834 | L58: 14816.24829 | M58: 13254.53424 | N58: 11536.64878 | O58: 9646.974771 | P58: 7568.333364 | Q58: 5281.827816 | R58: 2766.671713 | S58: 0 | T58: 0 | U58: 0 | V58: 0 | W58: 0 | X58: 0 | Y58: 0 | Z58: 0 | AA58: 0 | AB58: 0 | AC58: 0 | AD58: 0 | AE58: 0 | AF58: 0 | AG58: 0 | AH58: 0 | AI58: 0 | AJ58: 0 | AK58: 0 | AL58: 0 | AM58: 0 | AN58: 0 | AO58: 0 | AP58: 0 | AQ58: 0 | AR58: 0
C59: Interest | F59: =F27 -> 0.1 | J59: =$F$59*J56 -> 1870 | K59: =$F$59*K56 -> 1752.666112 | L59: 1623.598834 | M59: 1481.624829 | N59: 1325.453424 | O59: 1153.664878 | P59: 964.6974771 | Q59: 756.8333364 | R59: 528.1827816 | S59: 276.6671713 | T59: 0 | U59: 0 | V59: 0 | W59: 0 | X59: 0 | Y59: 0 | Z59: 0 | AA59: 0 | AB59: 0 | AC59: 0 | AD59: 0 | AE59: 0 | AF59: 0 | AG59: 0 | AH59: 0 | AI59: 0 | AJ59: 0 | AK59: 0 | AL59: 0 | AM59: 0 | AN59: 0 | AO59: 0 | AP59: 0 | AQ59: 0 | AR59: 0
A61: Financial Statements
B63: cash flow waterfall
C64: EBIDTA | J64: =J40 -> 4566.199068 | K64: =K40 -> 4566.199068 | L64: 4566.199068 | M64: 4566.199068 | N64: 4566.199068 | O64: 4566.199068 | P64: 4566.199068 | Q64: 4566.199068 | R64: 4566.199068 | S64: 4566.199068 | T64: 4566.199068 | U64: 4566.199068 | V64: 4566.199068 | W64: 4566.199068 | X64: 4566.199068 | Y64: 4566.199068 | Z64: 4566.199068 | AA64: 4566.199068 | AB64: 4566.199068 | AC64: 4566.199068 | AD64: 4566.199068 | AE64: 4566.199068 | AF64: 4566.199068 | AG64: 4566.199068 | AH64: 4566.199068 | AI64: 0 | AJ64: 0 | AK64: 0 | AL64: 0 | AM64: 0 | AN64: 0 | AO64: 0 | AP64: 0 | AQ64: 0 | AR64: 0
C65: less: debt service | J65: =J57-J59 -> -3043.338884 | K65: =K57-K59 -> -3043.338884 | L65: -3043.338884 | M65: -3043.338884 | N65: -3043.338884 | O65: -3043.338884 | P65: -3043.338884 | Q65: -3043.338884 | R65: -3043.338884 | S65: -3043.338884 | T65: 0 | U65: 0 | V65: 0 | W65: 0 | X65: 0 | Y65: 0 | Z65: 0 | AA65: 0 | AB65: 0 | AC65: 0 | AD65: 0 | AE65: 0 | AF65: 0 | AG65: 0 | AH65: 0 | AI65: 0 | AJ65: 0 | AK65: 0 | AL65: 0 | AM65: 0 | AN65: 0 | AO65: 0 | AP65: 0 | AQ65: 0 | AR65: 0
C66: Net cash flow | J66: =SUM(J64:J65) -> 1522.860184 | K66: =SUM(K64:K65) -> 1522.860184 | L66: 1522.860184 | M66: 1522.860184 | N66: 1522.860184 | O66: 1522.860184 | P66: 1522.860184 | Q66: 1522.860184 | R66: 1522.860184 | S66: 1522.860184 | T66: 4566.199068 | U66: 4566.199068 | V66: 4566.199068 | W66: 4566.199068 | X66: 4566.199068 | Y66: 4566.199068 | Z66: 4566.199068 | AA66: 4566.199068 | AB66: 4566.199068 | AC66: 4566.199068 | AD66: 4566.199068 | AE66: 4566.199068 | AF66: 4566.199068 | AG66: 4566.199068 | AH66: 4566.199068 | AI66: 0 | AJ66: 0 | AK66: 0 | AL66: 0 | AM66: 0 | AN66: 0 | AO66: 0 | AP66: 0 | AQ66: 0 | AR66: 0
C67: Dividend | J67: =J66 -> 1522.860184 | K67: =K66 -> 1522.860184 | L67: 1522.860184 | M67: 1522.860184 | N67: 1522.860184 | O67: 1522.860184 | P67: 1522.860184 | Q67: 1522.860184 | R67: 1522.860184 | S67: 1522.860184 | T67: 4566.199068 | U67: 4566.199068 | V67: 4566.199068 | W67: 4566.199068 | X67: 4566.199068 | Y67: 4566.199068 | Z67: 4566.199068 | AA67: 4566.199068 | AB67: 4566.199068 | AC67: 4566.199068 | AD67: 4566.199068 | AE67: 4566.199068 | AF67: 4566.199068 | AG67: 4566.199068 | AH67: 4566.199068 | AI67: 0 | AJ67: 0 | AK67: 0 | AL67: 0 | AM67: 0 | AN67: 0 | AO67: 0 | AP67: 0 | AQ67: 0 | AR67: 0
C69: Equity Cash flow | I69: =-I49 -> -3300 | J69: =J67 -> 1522.860184 | K69: 1522.860184 | L69: 1522.860184 | M69: 1522.860184 | N69: 1522.860184 | O69: 1522.860184 | P69: 1522.860184 | Q69: 1522.860184 | R69: 1522.860184 | S69: 1522.860184 | T69: 4566.199068 | U69: 4566.199068 | V69: 4566.199068 | W69: 4566.199068 | X69: 4566.199068 | Y69: 4566.199068 | Z69: 4566.199068 | AA69: 4566.199068 | AB69: 4566.199068 | AC69: 4566.199068 | AD69: 4566.199068 | AE69: 4566.199068 | AF69: 4566.199068 | AG69: 4566.199068 | AH69: 4566.199068 | AI69: 0 | AJ69: 0 | AK69: 0 | AL69: 0 | AM69: 0 | AN69: 0 | AO69: 0 | AP69: 0 | AQ69: 0 | AR69: 0
C70: Equity IRR | F70: =IRR(69:69) -> 0.4797205732
J71: 2016 | K71: 2017 | L71: 2018 | M71: 2019 | N71: 2020 | O71: 2021 | P71: 2022 | Q71: 2023 | R71: 2024 | S71: 2025 | T71: 2026 | U71: 2027 | V71: 2028 | W71: 2029 | X71: 2030 | Y71: 2031 | Z71: 2032 | AA71: 2033 | AB71: 2034 | AC71: 2035 | AD71: 2036 | AE71: 2037 | AF71: 2038 | AG71: 2039 | AH71: 2040 | AI71: 2041
C72: CFADS | J72: =J64 -> 4566.199068 | K72: 4566.199068 | L72: 4566.199068 | M72: 4566.199068 | N72: 4566.199068 | O72: 4566.199068 | P72: 4566.199068 | Q72: 4566.199068 | R72: 4566.199068 | S72: 4566.199068 | T72: 4566.199068 | U72: 4566.199068 | V72: 4566.199068 | W72: 4566.199068 | X72: 4566.199068 | Y72: 4566.199068 | Z72: 4566.199068 | AA72: 4566.199068 | AB72: 4566.199068 | AC72: 4566.199068 | AD72: 4566.199068 | AE72: 4566.199068 | AF72: 4566.199068 | AG72: 4566.199068 | AH72: 4566.199068 | AI72: 0 | AJ72: 0 | AK72: 0 | AL72: 0 | AM72: 0 | AN72: 0 | AO72: 0 | AP72: 0 | AQ72: 0 | AR72: 0
C73: Debt Service | J73: =-J65 -> 3043.338884 | K73: 3043.338884 | L73: 3043.338884 | M73: 3043.338884 | N73: 3043.338884 | O73: 3043.338884 | P73: 3043.338884 | Q73: 3043.338884 | R73: 3043.338884 | S73: 3043.338884 | T73: 0 | U73: 0 | V73: 0 | W73: 0 | X73: 0 | Y73: 0 | Z73: 0 | AA73: 0 | AB73: 0 | AC73: 0 | AD73: 0 | AE73: 0 | AF73: 0 | AG73: 0 | AH73: 0 | AI73: 0 | AJ73: 0 | AK73: 0 | AL73: 0 | AM73: 0 | AN73: 0 | AO73: 0 | AP73: 0 | AQ73: 0 | AR73: 0
J74: =IF(J73>0.1,J72/J73) -> 1.500391262 | K74: =IF(K73>0.1,K72/K73) -> 1.500391262 | L74: 1.500391262 | M74: 1.500391262 | N74: 1.500391262 | O74: 1.500391262 | P74: 1.500391262 | Q74: 1.500391262 | R74: 1.500391262 | S74: 1.500391262 | T74: FALSE | U74: FALSE | V74: FALSE | W74: FALSE | X74: FALSE | Y74: FALSE | Z74: FALSE | AA74: FALSE | AB74: FALSE | AC74: FALSE | AD74: FALSE | AE74: FALSE | AF74: FALSE | AG74: FALSE | AH74: FALSE | AI74: FALSE | AJ74: FALSE | AK74: FALSE | AL74: FALSE | AM74: FALSE | AN74: FALSE | AO74: FALSE | AP74: FALSE | AQ74: FALSE | AR74: FALSE
B75: Target Equity IRR | E75: =F76/100 -> 0.48
C76: Equity IRR Computed | E76: =H107 -> 0.4797205732 | F76: 48
C77: Difference | E77: =E75-E76 -> 0.0002794268091
A80: LCOE Inputs
B81: Project IRR | E81: =F41 -> 0.2056185997
A83: LCOE with Carrying Charge Rate | I83: Main Idea -- Use project IRR that gives you target equity IRR
B84: Discount Rate (Project IRR) | E84: =F41 -> 0.2056185997 | F84: =formula1(E84) -> =F41
B85: Carrying Charge rate | E85: =E87 -> 0.2075545031 | F85: =formula1(E85) -> =E87
B86: Carrying Charge from EBITDA/Cost | E86: =J64/I46 -> 0.2075545031 | F86: =formula1(E86) -> =J64/I46 | I86: EBITDA/Cost | J86: =J64/I50 -> 0.2075545031
B87: Carrying Charge with PMT Function | E87: =PMT(E84,$F$6,-1) -> 0.2075545031 | F87: =formula1(E87) -> =PMT(E84,$F$6,-1) | I87: PMT | J87: =PMT(E81,F6,-1) -> 0.2075545031
B88: Carrying Cost - USD/kW-yr | E88: =(F15*E86+F18) -> 240.3099534 | F88: =_xlfn.FORMULATEXT(E88) -> =(F15*E86+F18)
B89: Hours | E89: =8760*F11 -> 1752 | F89: =_xlfn.FORMULATEXT(E89) -> =8760*F11
B90: Simple LCOE (USD/MWH) | E90: =E88*1000/E89 -> 137.1632154 | F90: =E88*1000/E89 | I90: LCOE | J90: =(F15*J87+F18)/(8760*F11)*1000 -> 137.1632154
A92: LCOE Revenue and Generation Formula
B93: NPV of Revenues | E93: =NPV(E81,J38:AR38) -> 23156.32278 | F93: =formula1(E93) -> =NPV(E81,J38:AR38)
B94: NPV of Generation | E94: =NPV(E81,J33:AR33) -> 168823.1259 | F94: =NPV(E81,J33:AR33)
B95: LCOE from NPV Revenues/NPV of Generation) | E95: =E93/E94*1000 -> 137.1632154 | F95: =E93/E94*1000
B97: Total Cost | I97: =I35+I36 -> 22000 | J97: 240 | K97: 240 | L97: 240 | M97: 240 | N97: 240 | O97: 240 | P97: 240 | Q97: 240 | R97: 240 | S97: 240 | T97: 240 | U97: 240 | V97: 240 | W97: 240 | X97: 240 | Y97: 240 | Z97: 240 | AA97: 240 | AB97: 240 | AC97: 240 | AD97: 240 | AE97: 240 | AF97: 240 | AG97: 240 | AH97: 240 | AI97: 0 | AJ97: 0 | AK97: 0 | AL97: 0 | AM97: 0 | AN97: 0 | AO97: 0 | AP97: 0 | AQ97: 0 | AR97: 0
A99: LCOE using cost
B100: NPV of OPEX | E100: =NPV(E84,J36:AR36) -> 1156.32278 | F100: =formula1(E100) -> =NPV(E84,J36:AR36)
B101: NPV of CAP EXP | E101: =F35 -> 22000 | F101: =F35
B102: NPV of Cost | E102: =E100+E101 -> 23156.32278 | F102: =E100+E101
B103: NPV of Generation | E103: =NPV(E84,J33:AR33) -> 168823.1259 | F103: =NPV(E84,J33:AR33)
B104: LCOE from Cost Analysis | E104: =E102/E103*1000 -> 137.1632154 | F104: =E102/E103*1000
A107: =Scenarios!$B$21 -> Base case | C107: DSCR | F107: =J74 -> 1.500391262 | G107: Equity IRR | H107: =F70 -> 0.4797205732
F109: =H107 -> 0.4797205732 | G109: 1000 | H109: 1100 | I109: 1200 | J109: 1300 | K109: 1400 | L109: 1500
F110: 0.15 | G110: 0.2768811836 | H110: 0.2181793017 | I110: 0.1771157794 | J110: 0.1468037952 | K110: 0.1233476969 | L110: 0.1044984465
F111: 0.16 | G111: 0.3312434592 | H111: 0.258943718 | I111: 0.2088299247 | J111: 0.1725587582 | K111: 0.1450561402 | L111: 0.1233459026
F112: 0.17 | G112: 0.3927824083 | H112: 0.3056054466 | I112: 0.2447230553 | J112: 0.2011629103 | K112: 0.1687158593 | L112: 0.1435508584
F113: 0.18 | G113: 0.4604255706 | H113: 0.3583645714 | I113: 0.2854138107 | J113: 0.2331892374 | K113: 0.1947620704 | L113: 0.1654311124
F114: 0.19 | G114: 0.5326041889 | H114: 0.4167440388 | I114: 0.3312309786 | J114: 0.2691620156 | K114: 0.2236540955 | L114: 0.1893376311
F115: 0.2 | G115: 0.6078202524 | H115: 0.4797205732 | I115: 0.3820498568 | J115: 0.3094392399 | K115: 0.2558306025 | L115: 0.2156429731
F116: 0.21 | G116: 0.6849424807 | H116: 0.5460838737 | I116: 0.437278416 | J116: 0.3540854985 | K116: 0.2916346416 | L116: 0.2447131998
F118: Target IRR | G118: 0.2
G122: =H107 -> 0.4797205732 | H122: =F107 -> 1.500391262
F123: 0.15 | G123: 0.2181793017 | H123: 1.105578258
F124: 0.16 | G124: 0.258943718 | H124: 1.184540858
F125: 0.17 | G125: 0.3056054466 | H125: 1.263503459
F126: 0.18 | G126: 0.3583645714 | H126: 1.34246606
F127: 0.19 | G127: 0.4167440388 | H127: 1.421428661
F128: 0.2 | G128: 0.4797205732 | H128: 1.500391262
F129: 0.21 | G129: 0.5460838737 | H129: 1.579353862

Sheet LCOE Analysis
C2: Carrying Charge rate | F2: ='Financial Model'!E86 -> 0.2075545031
D5: Solar 1 | E5: Solar 2 | F5: Wind 1 | G5: Wind 2 | H5: Hydro | I5: NGCC 1 | J5: NGCC 2
B6: Capital Cost | C6: USD/kW | D6: 1100 | E6: 1700 | F6: 2000 | G6: 3500 | H6: 4000 | I6: 850 | J6: 1566
B7: Fixed O&M | C7: USD/kW-yr | D7: 12 | E7: 11 | F7: 35 | G7: 35 | H7: 15 | I7: 16 | J7: 16
B8: Total Capacity Cost | C8: USD/KW-yr | D8: =D6*$F$2+D7 -> 240.3099534 | E8: =E6*$F$2+E7 -> 363.8426552 | F8: 450.1090062 | G8: 761.4407608 | H8: 845.2180123 | I8: 192.4213276 | J8: 341.0303518
B9: Capacity Factor | C9: % | D9: 0.2 | E9: 0.19 | F9: 0.35 | G9: 0.35 | H9: 0.6 | I9: 0.8 | J9: 0.8
B10: Hours | C10: Hours/yr | D10: =8766*D9 -> 1753.2 | E10: =8766*E9 -> 1665.54 | F10: 3068.1 | G10: 3068.1 | H10: 5259.6 | I10: 7012.8 | J10: 7012.8
B11: Capacity cost | C11: USD/MWh | D11: =D8*1000/D10 -> 137.0693323 | E11: =E8*1000/E10 -> 218.4532676 | F11: 146.7061068 | G11: 248.1799031 | H11: 160.7000556 | I11: 27.43858767 | J11: 48.62969881
B12: Variable cost | C12: USD/MWh | D12: 0 | E12: 0 | F12: 0 | G12: 0 | H12: 0 | I12: 70 | J12: 70
B13: LCOE | C13: USD/MWh | D13: =SUM(D11:D12) -> 137.0693323 | E13: 218.4532676 | F13: 146.7061068 | G13: 248.1799031 | H13: 160.7000556 | I13: 97.43858767 | J13: 118.6296988
